[Event "*** SCC Grand Prix: Titled Tuesday Blitz"]
[Site "Chess.com"]
[Date "2020.08.25"]
[Round "1"]
[White "KarpovVadim"]
[Black "seorobert1971"]
[Result "1/2-1/2"]
[WhiteElo "2316"]
[BlackElo "2640"]
[TimeControl "180+1"]
[EndTime "10:06:46 PDT"]
[Termination "Game drawn by repetition"]

1. Nf3 {[%clk 0:02:59.5]} 1... Nf6 {[%clk 0:02:59.4]} 2. c3 {[%clk 0:02:58.8]}
2... d5 {[%clk 0:02:58.8]} 3. d4 {[%clk 0:02:58.8]} 3... c6 {[%clk 0:02:58.8]}
4. Bf4 {[%clk 0:02:58.9]} 4... Bf5 {[%clk 0:02:58.5]} 5. e3 {[%clk 0:02:58.9]}
5... e6 {[%clk 0:02:58.6]} 6. Bd3 {[%clk 0:02:59]} 6... Bxd3 {[%clk 0:02:58.3]}
7. Qxd3 {[%clk 0:02:59.1]} 7... Nbd7 {[%clk 0:02:58.3]} 8. Nbd2 {[%clk
0:02:55.7]} 8... Be7 {[%clk 0:02:59.2]} 9. O-O {[%clk 0:02:55.4]} 9... O-O
{[%clk 0:02:59]} 10. e4 {[%clk 0:02:55.3]} 10... dxe4 {[%clk 0:02:59]} 11. Nxe4
{[%clk 0:02:53.3]} 11... Nxe4 {[%clk 0:02:59.2]} 12. Qe3 {[%clk 0:02:54.2]}
12... Qb6 {[%clk 0:03:00]} 13. Qxe4 {[%clk 0:02:49.9]} 13... Nf6 {[%clk
0:02:54.3]} 14. Qc2 {[%clk 0:02:47.5]} 14... c5 {[%clk 0:02:47.7]} 15. Rad1
{[%clk 0:02:46]} 15... Rac8 {[%clk 0:02:45]} 16. Be5 {[%clk 0:02:42.8]} 16...
Rfd8 {[%clk 0:02:42.4]} 17. Qb3 {[%clk 0:02:41.6]} 17... Qxb3 {[%clk 0:02:40.6]}
18. axb3 {[%clk 0:02:38.8]} 18... a6 {[%clk 0:02:40.3]} 19. dxc5 {[%clk
0:02:36.9]} 19... Bxc5 {[%clk 0:02:40]} 20. Bxf6 {[%clk 0:02:33.7]} 20... gxf6
{[%clk 0:02:39.8]} 21. Rfe1 {[%clk 0:02:33.9]} 21... Kf8 {[%clk 0:02:38.6]} 22.
Kf1 {[%clk 0:02:34]} 22... Ke7 {[%clk 0:02:37.3]} 23. b4 {[%clk 0:02:34.1]}
23... Bd6 {[%clk 0:02:36]} 24. Ke2 {[%clk 0:02:33.6]} 24... Bb8 {[%clk
0:02:33.7]} 25. g3 {[%clk 0:02:33.2]} 25... Rc4 {[%clk 0:02:27.7]} 26. Rxd8
{[%clk 0:02:27.3]} 26... Kxd8 {[%clk 0:02:27.5]} 27. Rd1+ {[%clk 0:02:27.2]}
27... Ke7 {[%clk 0:02:27.1]} 28. Nd4 {[%clk 0:02:27.1]} 28... Ba7 {[%clk
0:02:24.3]} 29. Nb3 {[%clk 0:02:21.4]} 29... Bb6 {[%clk 0:02:24.1]} 30. f3
{[%clk 0:02:17.7]} 30... f5 {[%clk 0:02:14.8]} 31. Kd3 {[%clk 0:02:14.3]} 31...
Rc8 {[%clk 0:02:13.5]} 32. Ke2 {[%clk 0:02:11.3]} 32... h5 {[%clk 0:02:09.5]}
33. Nd2 {[%clk 0:01:54.7]} 33... Rg8 {[%clk 0:02:00.5]} 34. Nc4 {[%clk
0:01:51.9]} 34... Bc7 {[%clk 0:02:00.4]} 35. Na5 {[%clk 0:01:48.8]} 35... Bxa5
{[%clk 0:01:54.8]} 36. bxa5 {[%clk 0:01:49.7]} 36... h4 {[%clk 0:01:54.1]} 37.
Kf2 {[%clk 0:01:47.8]} 37... hxg3+ {[%clk 0:01:52.8]} 38. hxg3 {[%clk
0:01:48.7]} 38... Rh8 {[%clk 0:01:50]} 39. Kg2 {[%clk 0:01:47.8]} 39... Rc8
{[%clk 0:01:49.7]} 40. Rd4 {[%clk 0:01:44.6]} 40... Rc5 {[%clk 0:01:37.3]} 41.
Ra4 {[%clk 0:01:43.2]} 41... Rb5 {[%clk 0:01:34.3]} 42. b4 {[%clk 0:01:41.8]}
42... Rd5 {[%clk 0:01:33.9]} 43. Kf2 {[%clk 0:01:30.4]} 43... Rd3 {[%clk
0:01:29.3]} 44. Ra3 {[%clk 0:01:30.2]} 44... e5 {[%clk 0:01:28.8]} 45. Ke2
{[%clk 0:01:30]} 45... e4 {[%clk 0:01:28.8]} 46. fxe4 {[%clk 0:01:27.1]} 46...
fxe4 {[%clk 0:01:28.5]} 47. Kf2 {[%clk 0:01:28]} 47... f5 {[%clk 0:01:26.9]} 48.
Rb3 {[%clk 0:01:27.9]} 48... Rd5 {[%clk 0:01:04.2]} 49. c4 {[%clk 0:01:21.6]}
49... Rd4 {[%clk 0:01:03.9]} 50. b5 {[%clk 0:01:21.6]} 50... Rxc4 {[%clk
0:01:03.5]} 51. bxa6 {[%clk 0:01:21.1]} 51... bxa6 {[%clk 0:01:03.8]} 52. Rb6
{[%clk 0:01:20.3]} 52... Rc2+ {[%clk 0:01:02.8]} 53. Ke3 {[%clk 0:01:18.4]}
53... Rc3+ {[%clk 0:01:01.9]} 54. Kf2 {[%clk 0:01:16.8]} 54... Rf3+ {[%clk
0:01:01.5]} 55. Kg2 {[%clk 0:01:15.9]} 55... Ra3 {[%clk 0:01:01.2]} 56. Rxa6
{[%clk 0:01:14.7]} 56... Ra2+ {[%clk 0:01:01.1]} 57. Kf1 {[%clk 0:01:13.8]}
57... Kf7 {[%clk 0:01:00.6]} 58. Kg1 {[%clk 0:01:10.7]} 58... Kg7 {[%clk
0:00:54.2]} 59. Kf1 {[%clk 0:01:10.4]} 59... Kf7 {[%clk 0:00:53.8]} 60. Kg1
{[%clk 0:01:10.1]} 60... Ra3 {[%clk 0:00:52.7]} 61. Kf2 {[%clk 0:01:08.6]} 61...
Ra1 {[%clk 0:00:52.3]} 62. Kg2 {[%clk 0:01:06.7]} 62... Ra2+ {[%clk 0:00:50.7]}
63. Kg1 {[%clk 0:01:06.1]} 1/2-1/2

[Event "*** SCC Grand Prix: Titled Tuesday Blitz"]
[Site "Chess.com"]
[Date "2020.08.25"]
[Round "1"]
[White "annacramling"]
[Black "stolencandy13"]
[Result "0-1"]
[WhiteElo "2135"]
[BlackElo "2506"]
[TimeControl "180+1"]
[EndTime "10:06:47 PDT"]
[Termination "stolencandy13 won by resignation"]

1. d4 {[%clk 0:02:56.7]} 1... Nf6 {[%clk 0:02:58.8]} 2. c4 {[%clk 0:02:56.6]}
2... e5 {[%clk 0:02:56.8]} 3. dxe5 {[%clk 0:02:54.9]} 3... Ng4 {[%clk
0:02:56.9]} 4. Bf4 {[%clk 0:02:54]} 4... Nc6 {[%clk 0:02:53.9]} 5. Nf3 {[%clk
0:02:47.1]} 5... Bb4+ {[%clk 0:02:43.8]} 6. Nbd2 {[%clk 0:02:44.5]} 6... Qe7
{[%clk 0:02:43.8]} 7. e3 {[%clk 0:02:43.4]} 7... Ngxe5 {[%clk 0:02:43.5]} 8.
Nxe5 {[%clk 0:02:42.2]} 8... Nxe5 {[%clk 0:02:40.8]} 9. Be2 {[%clk 0:02:42.1]}
9... d6 {[%clk 0:02:41]} 10. O-O {[%clk 0:02:37.3]} 10... O-O {[%clk 0:02:40.8]}
11. Nf3 {[%clk 0:02:29.1]} 11... Bc5 {[%clk 0:02:19.7]} 12. a3 {[%clk
0:02:19.8]} 12... a5 {[%clk 0:02:19.6]} 13. Qc2 {[%clk 0:01:52.6]} 13... Ng6
{[%clk 0:02:14.5]} 14. Bg3 {[%clk 0:01:44.9]} 14... Bd7 {[%clk 0:02:14.8]} 15.
Rfd1 {[%clk 0:01:42]} 15... Bc6 {[%clk 0:02:13.8]} 16. Nd4 {[%clk 0:01:38.5]}
16... Be4 {[%clk 0:02:07.2]} 17. Bd3 {[%clk 0:01:37.2]} 17... Bxd3 {[%clk
0:02:00.8]} 18. Qxd3 {[%clk 0:01:38.1]} 18... Ne5 {[%clk 0:02:00.3]} 19. Qc2
{[%clk 0:01:12.9]} 19... Bxd4 {[%clk 0:01:41.9]} 20. e4 {[%clk 0:01:12.2]} 20...
c5 {[%clk 0:01:39.5]} 21. Kh1 {[%clk 0:00:55.7]} 21... a4 {[%clk 0:01:38.8]} 22.
f4 {[%clk 0:00:54.3]} 22... Ng4 {[%clk 0:01:35.1]} 23. Qd3 {[%clk 0:00:49.2]}
23... Rfe8 {[%clk 0:01:33.5]} 24. Re1 {[%clk 0:00:45.6]} 24... Bf2 {[%clk
0:01:29.7]} 25. Re2 {[%clk 0:00:42.7]} 25... Bxg3 {[%clk 0:01:24.9]} 26. Qxg3
{[%clk 0:00:43.6]} 26... Nf6 {[%clk 0:01:23.7]} 27. e5 {[%clk 0:00:41.8]} 27...
Nh5 {[%clk 0:01:20.3]} 28. Qg4 {[%clk 0:00:34.3]} 28... g6 {[%clk 0:01:19.2]}
29. Rae1 {[%clk 0:00:19.2]} 29... Ng7 {[%clk 0:01:14.2]} 30. Qf3 {[%clk
0:00:13.5]} 30... Qc7 {[%clk 0:01:06.1]} 31. exd6 {[%clk 0:00:12.7]} 31... Rxe2
{[%clk 0:01:02.8]} 32. Rxe2 {[%clk 0:00:07.4]} 32... Qxd6 {[%clk 0:01:02.7]} 33.
h3 {[%clk 0:00:07.7]} 33... Nf5 {[%clk 0:00:58.3]} 34. Kh2 {[%clk 0:00:05.5]}
34... Nd4 {[%clk 0:00:57.1]} 35. Qxb7 {[%clk 0:00:04.2]} 35... Rb8 {[%clk
0:00:49.7]} 36. Qe4 {[%clk 0:00:02.5]} 36... Nxe2 {[%clk 0:00:48.4]} 37. Qxe2
{[%clk 0:00:02.8]} 37... Qxf4+ {[%clk 0:00:48.5]} 38. g3 {[%clk 0:00:03.7]}
38... Qd4 {[%clk 0:00:47.5]} 39. Kg2 {[%clk 0:00:03.9]} 39... Rxb2 {[%clk
0:00:47.5]} 0-1

[Event "*** SCC Grand Prix: Titled Tuesday Blitz"]
[Site "Chess.com"]
[Date "2020.08.25"]
[Round "1"]
[White "Balla_Tamas"]
[Black "Alexander_Zubov"]
[Result "0-1"]
[WhiteElo "2447"]
[BlackElo "2943"]
[TimeControl "180+1"]
[EndTime "10:06:48 PDT"]
[Termination "Alexander_Zubov won by resignation"]

1. e4 {[%clk 0:02:56]} 1... c5 {[%clk 0:02:58.2]} 2. d3 {[%clk 0:02:55.4]} 2...
d6 {[%clk 0:02:57.9]} 3. g3 {[%clk 0:02:54.6]} 3... Nc6 {[%clk 0:02:57.8]} 4.
Bg2 {[%clk 0:02:55.1]} 4... g6 {[%clk 0:02:58.4]} 5. f4 {[%clk 0:02:55.5]} 5...
Bg7 {[%clk 0:02:58.7]} 6. Nf3 {[%clk 0:02:56.2]} 6... e5 {[%clk 0:02:59.1]} 7.
O-O {[%clk 0:02:55.5]} 7... Nge7 {[%clk 0:02:58.8]} 8. c3 {[%clk 0:02:52.2]}
8... O-O {[%clk 0:02:58.1]} 9. Be3 {[%clk 0:02:50.5]} 9... b6 {[%clk 0:02:55.4]}
10. Na3 {[%clk 0:02:42.8]} 10... h6 {[%clk 0:02:50.8]} 11. d4 {[%clk 0:02:33.9]}
11... exd4 {[%clk 0:02:49.1]} 12. cxd4 {[%clk 0:02:33.5]} 12... Bg4 {[%clk
0:02:47.4]} 13. Nc2 {[%clk 0:02:28.5]} 13... d5 {[%clk 0:02:40.3]} 14. e5 {[%clk
0:02:24]} 14... c4 {[%clk 0:02:24.7]} 15. b3 {[%clk 0:02:20.7]} 15... Rc8 {[%clk
0:02:19.7]} 16. h3 {[%clk 0:02:10.5]} 16... Bf5 {[%clk 0:02:19.3]} 17. Rc1
{[%clk 0:02:00.7]} 17... b5 {[%clk 0:02:13.8]} 18. g4 {[%clk 0:01:57.1]} 18...
Bd3 {[%clk 0:02:05.1]} 19. Rf2 {[%clk 0:01:56.1]} 19... Qd7 {[%clk 0:02:03.2]}
20. Nce1 {[%clk 0:01:54.3]} 20... Be4 {[%clk 0:02:02.7]} 21. Nd2 {[%clk
0:01:49.7]} 21... Bxg2 {[%clk 0:02:02.6]} 22. Nxg2 {[%clk 0:01:49.6]} 22... f5
{[%clk 0:01:59.9]} 23. exf6 {[%clk 0:01:34.2]} 23... Bxf6 {[%clk 0:01:48.6]} 24.
Nf3 {[%clk 0:01:34.3]} 24... Nb4 {[%clk 0:01:47.8]} 25. Nge1 {[%clk 0:01:29.1]}
25... Qe6 {[%clk 0:01:37.2]} 26. Ne5 {[%clk 0:01:27.5]} 26... Bxe5 {[%clk
0:01:25]} 27. dxe5 {[%clk 0:01:26.9]} 27... Rfd8 {[%clk 0:01:23]} 28. Bd4 {[%clk
0:01:19.3]} 28... Kh7 {[%clk 0:01:12.2]} 29. a3 {[%clk 0:01:16.1]} 29... Nbc6
{[%clk 0:01:11.8]} 30. b4 {[%clk 0:01:15.8]} 30... Nxd4 {[%clk 0:01:11.1]} 31.
Qxd4 {[%clk 0:01:15.7]} 31... Nc6 {[%clk 0:01:11.7]} 32. Qc5 {[%clk 0:01:09.3]}
32... d4 {[%clk 0:01:03.4]} 33. Qxb5 {[%clk 0:01:08]} 33... d3 {[%clk
0:01:00.6]} 34. Nf3 {[%clk 0:01:06.3]} 34... Nd4 {[%clk 0:00:57.6]} 35. Nxd4
{[%clk 0:01:00]} 35... Rxd4 {[%clk 0:00:58.5]} 36. f5 {[%clk 0:00:59.1]} 36...
gxf5 {[%clk 0:00:57.3]} 37. gxf5 {[%clk 0:00:58.5]} 37... Qd5 {[%clk 0:00:49.8]}
38. Qxd5 {[%clk 0:00:33]} 38... Rxd5 {[%clk 0:00:49.4]} 39. f6 {[%clk
0:00:31.7]} 39... d2 {[%clk 0:00:47.2]} 40. Rd1 {[%clk 0:00:31.3]} 40... c3
{[%clk 0:00:47.8]} 41. f7 {[%clk 0:00:31.6]} 41... c2 {[%clk 0:00:46.7]} 0-1

[Event "*** SCC Grand Prix: Titled Tuesday Blitz"]
[Site "Chess.com"]
[Date "2020.08.25"]
[Round "1"]
[White "BJthechessgod"]
[Black "Artem_Sadovsky"]
[Result "0-1"]
[WhiteElo "2218"]
[BlackElo "2552"]
[TimeControl "180+1"]
[EndTime "10:06:48 PDT"]
[Termination "Artem_Sadovsky won by checkmate"]

1. e4 {[%clk 0:02:51.3]} 1... c6 {[%clk 0:02:59]} 2. d4 {[%clk 0:02:45]} 2... d5
{[%clk 0:02:59.9]} 3. Nc3 {[%clk 0:02:40.9]} 3... dxe4 {[%clk 0:02:59.8]} 4.
Nxe4 {[%clk 0:02:41.8]} 4... Bf5 {[%clk 0:02:59.8]} 5. Ng3 {[%clk 0:02:33.8]}
5... Bg6 {[%clk 0:03:00]} 6. h4 {[%clk 0:01:59.6]} 6... h6 {[%clk 0:02:59.6]} 7.
h5 {[%clk 0:01:59.3]} 7... Bh7 {[%clk 0:02:59.7]} 8. Nf3 {[%clk 0:01:59.8]} 8...
Nd7 {[%clk 0:02:59.6]} 9. Bd3 {[%clk 0:02:00.7]} 9... Bxd3 {[%clk 0:02:59.9]}
10. Qxd3 {[%clk 0:02:01.6]} 10... e6 {[%clk 0:02:59.3]} 11. Bf4 {[%clk
0:01:58.7]} 11... Ngf6 {[%clk 0:02:59]} 12. O-O-O {[%clk 0:01:57.4]} 12... Qa5
{[%clk 0:02:57.7]} 13. Kb1 {[%clk 0:01:55.5]} 13... O-O-O {[%clk 0:02:57.2]} 14.
Ne5 {[%clk 0:01:44.7]} 14... Nxe5 {[%clk 0:02:47]} 15. Bxe5 {[%clk 0:01:45.6]}
15... Ng4 {[%clk 0:02:47.4]} 16. Qe2 {[%clk 0:01:30]} 16... Nxe5 {[%clk
0:02:46.7]} 17. dxe5 {[%clk 0:01:30.9]} 17... Be7 {[%clk 0:02:37.5]} 18. f4
{[%clk 0:01:09.2]} 18... Rd5 {[%clk 0:02:17.9]} 19. Rxd5 {[%clk 0:00:59.3]}
19... cxd5 {[%clk 0:02:14.7]} 20. Rd1 {[%clk 0:00:59]} 20... Kb8 {[%clk
0:02:13.7]} 21. f5 {[%clk 0:00:56.7]} 21... Rc8 {[%clk 0:02:00.9]} 22. fxe6
{[%clk 0:00:51.9]} 22... fxe6 {[%clk 0:02:01.8]} 23. Qg4 {[%clk 0:00:51.7]}
23... Qb6 {[%clk 0:01:57]} 24. Qd4 {[%clk 0:00:31.4]} 24... Bc5 {[%clk
0:01:44.9]} 25. Qa4 {[%clk 0:00:27.7]} 25... Qc7 {[%clk 0:01:29.9]} 26. Qf4
{[%clk 0:00:15.2]} 26... Be3 {[%clk 0:01:28.2]} 27. Qa4 {[%clk 0:00:04.5]} 27...
Qxe5 {[%clk 0:01:12.1]} 28. Ne2 {[%clk 0:00:04.6]} 28... Qxh5 {[%clk 0:01:04.9]}
29. Nc3 {[%clk 0:00:03.2]} 29... Rxc3 {[%clk 0:00:53.3]} 30. bxc3 {[%clk
0:00:03]} 30... Qxd1+ {[%clk 0:00:52.6]} 31. Kb2 {[%clk 0:00:03.9]} 31... Qc1+
{[%clk 0:00:49.1]} 32. Kb3 {[%clk 0:00:04.3]} 32... Qb1+ {[%clk 0:00:49.2]} 33.
Ka3 {[%clk 0:00:05.2]} 33... Bc5+ {[%clk 0:00:49.1]} 34. Qb4 {[%clk 0:00:04.9]}
34... Bxb4+ {[%clk 0:00:48]} 35. cxb4 {[%clk 0:00:05.8]} 35... Qxc2 {[%clk
0:00:41.7]} 36. g4 {[%clk 0:00:04.4]} 36... b5 {[%clk 0:00:40.4]} 37. g5 {[%clk
0:00:05.3]} 37... Qc3# {[%clk 0:00:41.3]} 0-1

[Event "*** SCC Grand Prix: Titled Tuesday Blitz"]
[Site "Chess.com"]
[Date "2020.08.25"]
[Round "1"]
[White "mapleaff"]
[Black "vinniethepooh"]
[Result "0-1"]
[WhiteElo "2347"]
[BlackElo "2677"]
[TimeControl "180+1"]
[EndTime "10:06:50 PDT"]
[Termination "vinniethepooh won by checkmate"]

1. d4 {[%clk 0:03:00.9]} 1... Nf6 {[%clk 0:02:58.1]} 2. c4 {[%clk 0:03:00.9]}
2... e6 {[%clk 0:02:57.8]} 3. g3 {[%clk 0:02:57]} 3... d5 {[%clk 0:02:53.9]} 4.
Bg2 {[%clk 0:02:57]} 4... a6 {[%clk 0:02:52.2]} 5. Qc2 {[%clk 0:02:54.1]} 5...
Nc6 {[%clk 0:02:47.3]} 6. Nf3 {[%clk 0:02:51.8]} 6... Bb4+ {[%clk 0:02:45.6]} 7.
Bd2 {[%clk 0:02:45.4]} 7... O-O {[%clk 0:02:45.1]} 8. O-O {[%clk 0:02:37.5]}
8... Be7 {[%clk 0:02:39.3]} 9. Na3 {[%clk 0:02:32.1]} 9... Ne4 {[%clk
0:02:34.3]} 10. Be3 {[%clk 0:02:20.2]} 10... f5 {[%clk 0:02:27.8]} 11. Rac1
{[%clk 0:02:12.3]} 11... Kh8 {[%clk 0:02:19.4]} 12. Rfd1 {[%clk 0:02:09.6]}
12... Bd7 {[%clk 0:01:57.5]} 13. Nd2 {[%clk 0:02:04.8]} 13... Be8 {[%clk
0:01:54]} 14. f3 {[%clk 0:02:02.7]} 14... Nxd2 {[%clk 0:01:47]} 15. Rxd2 {[%clk
0:02:02.6]} 15... Nb4 {[%clk 0:01:36.2]} 16. Qb3 {[%clk 0:01:58.9]} 16... a5
{[%clk 0:01:11.1]} 17. cxd5 {[%clk 0:01:42.9]} 17... a4 {[%clk 0:00:49.7]} 18.
Qd1 {[%clk 0:01:39.2]} 18... Nxd5 {[%clk 0:00:45.2]} 19. Bf2 {[%clk 0:01:36.4]}
19... f4 {[%clk 0:00:43.5]} 20. Nc4 {[%clk 0:01:29.1]} 20... Bb4 {[%clk
0:00:37]} 21. Rdc2 {[%clk 0:01:24.9]} 21... Bg6 {[%clk 0:00:37.4]} 22. a3 {[%clk
0:01:16.6]} 22... Bxc2 {[%clk 0:00:36.5]} 23. Qxc2 {[%clk 0:01:16.4]} 23... Bd6
{[%clk 0:00:37]} 24. Bh3 {[%clk 0:01:10.3]} 24... Qf6 {[%clk 0:00:33.5]} 25. Qe4
{[%clk 0:01:02.7]} 25... fxg3 {[%clk 0:00:23.7]} 26. hxg3 {[%clk 0:01:01.8]}
26... Qh6 {[%clk 0:00:23.6]} 27. Kg2 {[%clk 0:00:38.8]} 27... Qxc1 {[%clk
0:00:23]} 28. Bxe6 {[%clk 0:00:38.6]} 28... Qxc4 {[%clk 0:00:12.2]} 29. Bxd5
{[%clk 0:00:38.3]} 29... Qb5 {[%clk 0:00:12.5]} 30. Ba2 {[%clk 0:00:35.6]} 30...
Rae8 {[%clk 0:00:10.9]} 31. Qh4 {[%clk 0:00:33.5]} 31... Qxe2 {[%clk 0:00:09.9]}
32. Bb1 {[%clk 0:00:32.1]} 32... Qxf3+ {[%clk 0:00:10.2]} 33. Kg1 {[%clk
0:00:31.6]} 33... Qxf2+ {[%clk 0:00:10.1]} 34. Kh1 {[%clk 0:00:31.4]} 34... Re1#
{[%clk 0:00:11]} 0-1

[Event "*** SCC Grand Prix: Titled Tuesday Blitz"]
[Site "Chess.com"]
[Date "2020.08.25"]
[Round "1"]
[White "Morshynska"]
[Black "albi1999"]
[Result "0-1"]
[WhiteElo "2176"]
[BlackElo "2516"]
[TimeControl "180+1"]
[EndTime "10:06:50 PDT"]
[Termination "albi1999 won on time"]

1. e4 {[%clk 0:03:00.9]} 1... c6 {[%clk 0:02:59.2]} 2. d4 {[%clk 0:03:00.3]}
2... d5 {[%clk 0:02:52.7]} 3. Nd2 {[%clk 0:02:58.8]} 3... dxe4 {[%clk 0:02:48]}
4. Nxe4 {[%clk 0:02:59.7]} 4... Bf5 {[%clk 0:02:48.5]} 5. Ng3 {[%clk 0:02:59]}
5... Bg6 {[%clk 0:02:49]} 6. h4 {[%clk 0:02:59.2]} 6... h6 {[%clk 0:02:46.1]} 7.
Nf3 {[%clk 0:02:58.9]} 7... Nd7 {[%clk 0:02:45.9]} 8. Bd3 {[%clk 0:02:59.3]}
8... Bxd3 {[%clk 0:02:45.8]} 9. Qxd3 {[%clk 0:03:00.2]} 9... e6 {[%clk
0:02:46.7]} 10. Bf4 {[%clk 0:02:59.7]} 10... Bb4+ {[%clk 0:02:46.2]} 11. c3
{[%clk 0:02:59.1]} 11... Be7 {[%clk 0:02:45.7]} 12. h5 {[%clk 0:02:51]} 12...
Ngf6 {[%clk 0:02:40.5]} 13. O-O-O {[%clk 0:02:43.6]} 13... Qa5 {[%clk
0:02:39.7]} 14. Kb1 {[%clk 0:02:42.9]} 14... O-O-O {[%clk 0:02:39.7]} 15. Qe2
{[%clk 0:02:35.5]} 15... Rhe8 {[%clk 0:02:37.1]} 16. Ne5 {[%clk 0:02:30.7]}
16... Nxe5 {[%clk 0:02:36.9]} 17. Bxe5 {[%clk 0:02:30.1]} 17... Qd5 {[%clk
0:02:30.1]} 18. Bxf6 {[%clk 0:02:02.4]} 18... Bxf6 {[%clk 0:02:29.6]} 19. Ne4
{[%clk 0:01:53.1]} 19... Be7 {[%clk 0:02:29.6]} 20. Ka1 {[%clk 0:01:36.8]} 20...
Kb8 {[%clk 0:02:24.1]} 21. g4 {[%clk 0:01:26.1]} 21... e5 {[%clk 0:02:07.8]} 22.
f3 {[%clk 0:01:13.2]} 22... Qe6 {[%clk 0:02:01.5]} 23. Qh2 {[%clk 0:01:10.5]}
23... Bd6 {[%clk 0:01:45.2]} 24. dxe5 {[%clk 0:00:53.7]} 24... Bxe5 {[%clk
0:01:43]} 25. Qe2 {[%clk 0:00:49.6]} 25... Bf4 {[%clk 0:01:40.8]} 26. Rxd8+
{[%clk 0:00:46.2]} 26... Rxd8 {[%clk 0:01:41.7]} 27. Rd1 {[%clk 0:00:46.5]}
27... Rd5 {[%clk 0:01:42]} 28. c4 {[%clk 0:00:40.8]} 28... Rd7 {[%clk
0:01:38.9]} 29. Rxd7 {[%clk 0:00:36]} 29... Qxd7 {[%clk 0:01:38]} 30. Kb1 {[%clk
0:00:34.8]} 30... Qd4 {[%clk 0:01:35]} 31. a3 {[%clk 0:00:29.3]} 31... a6 {[%clk
0:01:33.4]} 32. c5 {[%clk 0:00:22.2]} 32... Qg1+ {[%clk 0:01:31.9]} 33. Ka2
{[%clk 0:00:19.8]} 33... Qc1 {[%clk 0:01:32.3]} 34. Qd3 {[%clk 0:00:16.4]} 34...
Bc7 {[%clk 0:01:23.3]} 35. b4 {[%clk 0:00:12.7]} 35... Qf4 {[%clk 0:01:22.3]}
36. Kb3 {[%clk 0:00:10.9]} 36... Qe5 {[%clk 0:01:22.3]} 37. a4 {[%clk
0:00:10.2]} 37... Kc8 {[%clk 0:01:22.2]} 38. a5 {[%clk 0:00:09.1]} 38... Qe6+
{[%clk 0:01:20.1]} 39. Qc4 {[%clk 0:00:08.2]} 39... Kd7 {[%clk 0:01:20.3]} 40.
Kc3 {[%clk 0:00:06.2]} 40... Be5+ {[%clk 0:01:19.6]} 41. Kd3 {[%clk 0:00:05.4]}
41... Qd5+ {[%clk 0:01:18.5]} 42. Qxd5+ {[%clk 0:00:04.5]} 42... cxd5 {[%clk
0:01:19.4]} 43. Nd2 {[%clk 0:00:04.2]} 43... Kc6 {[%clk 0:01:18.6]} 44. Kc2
{[%clk 0:00:03.1]} 44... Bf4 {[%clk 0:01:14.1]} 45. Nb1 {[%clk 0:00:01.7]} 45...
d4 {[%clk 0:01:10.9]} 0-1

[Event "*** SCC Grand Prix: Titled Tuesday Blitz"]
[Site "Chess.com"]
[Date "2020.08.25"]
[Round "1"]
[White "felipelobo"]
[Black "TST2014"]
[Result "0-1"]
[WhiteElo "2129"]
[BlackElo "2503"]
[TimeControl "180+1"]
[EndTime "10:06:54 PDT"]
[Termination "TST2014 won by resignation"]

1. e4 {[%clk 0:02:59.7]} 1... c5 {[%clk 0:02:58.5]} 2. Nf3 {[%clk 0:02:59]} 2...
Nc6 {[%clk 0:02:58]} 3. d4 {[%clk 0:02:59.3]} 3... cxd4 {[%clk 0:02:58.9]} 4.
Nxd4 {[%clk 0:02:59.7]} 4... Nf6 {[%clk 0:02:59.2]} 5. Nc3 {[%clk 0:02:59.7]}
5... d6 {[%clk 0:02:59.5]} 6. Bg5 {[%clk 0:02:57.2]} 6... e6 {[%clk 0:02:57.1]}
7. Qd2 {[%clk 0:02:56.5]} 7... a6 {[%clk 0:02:56.6]} 8. O-O-O {[%clk 0:02:56.6]}
8... Bd7 {[%clk 0:02:56.9]} 9. f4 {[%clk 0:02:55.9]} 9... h6 {[%clk 0:02:56.6]}
10. Bxf6 {[%clk 0:02:52.4]} 10... Qxf6 {[%clk 0:02:55.8]} 11. Nf3 {[%clk
0:02:51.2]} 11... Qd8 {[%clk 0:02:54.7]} 12. Bd3 {[%clk 0:02:45.8]} 12... Qc7
{[%clk 0:02:51.9]} 13. Rhe1 {[%clk 0:02:35.4]} 13... Be7 {[%clk 0:02:46.3]} 14.
Nd5 {[%clk 0:02:27.3]} 14... exd5 {[%clk 0:02:40]} 15. exd5 {[%clk 0:02:28.2]}
15... Na7 {[%clk 0:02:39.9]} 16. Nd4 {[%clk 0:02:09.1]} 16... Bg4 {[%clk
0:02:24.9]} 17. Nf5 {[%clk 0:01:27.4]} 17... Bxf5 {[%clk 0:02:22.2]} 18. Bxf5
{[%clk 0:01:28.3]} 18... O-O {[%clk 0:02:19.9]} 19. g4 {[%clk 0:01:21.9]} 19...
Bh4 {[%clk 0:02:06.7]} 20. Rg1 {[%clk 0:01:16.2]} 20... g6 {[%clk 0:01:51]} 21.
Bd3 {[%clk 0:01:01.9]} 21... Bf6 {[%clk 0:01:46.7]} 22. h4 {[%clk 0:00:55.6]}
22... Qb6 {[%clk 0:01:39.8]} 23. c3 {[%clk 0:00:52.2]} 23... Rac8 {[%clk
0:01:33.7]} 24. h5 {[%clk 0:00:43.7]} 24... g5 {[%clk 0:01:30.9]} 25. Bc2 {[%clk
0:00:38.6]} 25... Rfe8 {[%clk 0:01:27.9]} 26. Qd3 {[%clk 0:00:37.4]} 26... Qe3+
{[%clk 0:01:27.2]} 27. Kb1 {[%clk 0:00:34.6]} 27... Qxd3 {[%clk 0:01:26.3]} 28.
Rxd3 {[%clk 0:00:35.5]} 28... gxf4 {[%clk 0:01:19.9]} 29. g5 {[%clk 0:00:28.9]}
29... hxg5 {[%clk 0:01:17.4]} 30. h6 {[%clk 0:00:27.6]} 30... Re2 {[%clk
0:01:10.2]} 31. h7+ {[%clk 0:00:24.5]} 31... Kh8 {[%clk 0:01:07.1]} 32. Rh3
{[%clk 0:00:16.5]} 32... Rce8 {[%clk 0:01:04.9]} 33. a4 {[%clk 0:00:13.5]} 33...
Re1+ {[%clk 0:01:03.7]} 34. Rxe1 {[%clk 0:00:13]} 34... Rxe1+ {[%clk 0:01:04.6]}
35. Ka2 {[%clk 0:00:13.9]} 35... Nc8 {[%clk 0:00:58.2]} 36. Rh6 {[%clk
0:00:13.9]} 36... Bg7 {[%clk 0:00:57.9]} 37. Rh5 {[%clk 0:00:14.1]} 37... Rg1
{[%clk 0:00:55.8]} 38. Bf5 {[%clk 0:00:11.8]} 38... Ne7 {[%clk 0:00:55.3]} 39.
Be4 {[%clk 0:00:11.6]} 39... f5 {[%clk 0:00:54.6]} 40. Bc2 {[%clk 0:00:09.5]}
40... f3 {[%clk 0:00:54.6]} 41. Rh2 {[%clk 0:00:08]} 41... Rg2 {[%clk
0:00:53.9]} 0-1